Workbook

Sheet 급여계산기(산단장발령)
A1: ■ 월 급여 계산기(과제확보 예산을 알지만 월 급여액을 얼마로 해야할지 모를때)
A2: 과제에서 확보된 재원 | B2: 40000000 | C2: 인건비 세목예산 | E2: <급여명세서(예상)> | I2: 4대보험 요율 | J2: 개인부담금 | K2: 법인부담금 | L2: 합계
A3: 참여개월수 | B3: 12 | E3: 급여항목 | F3: 금액 | I3: 국민 | J3: 0.0475 | K3: 0.0475 | L3: =J3+K3 -> 0.095 | M3: 2026인상
A4: 월급여 | B4: =IF(B6="O",ROUNDDOWN((12*B2)/(12*B3*법인요율+13*B3),-3),ROUNDDOWN(B2/(B3*법인요율+B3),-3)) -> 2997000 | C4: 계약서 기재 금액(식대포함) | E4: 월급여 | F4: =B4 -> 2997000 | I4: 건강 | J4: 0.04067383 | K4: 0.04067383 | L4: =J4+K4 -> 0.08134766 | M4: 2026인상
A5: (식대) | B5: 200000 | E5: 세액 | F5: =IFERROR(F6+F7,0) -> 61540 | I5: 고용 | J5: 0.009 | K5: 0.0155 | L5: 0.0245
A6: 퇴직금 유무 | B6: X | E6: 소득세 | F6: =IFERROR(VLOOKUP((F4-F9)/1000,'2024년 간이세액표'!A1:M659,3,1),0) -> 55950 | I6: 산재 | J6: 0 | K6: 0.00636 | L6: 0.00636 | M6: 2026인상
A7: 일 최대 근로시간(H) | B7: 8 | C7: 2026 최저시급 기준적용(일3시간이상(주15시간이상)만가능) | E7: 지방소득세 | F7: =IFERROR(ROUNDDOWN(F6*10%,-1),0) -> 5590 | I7: 예비율 | K7: 0.002 | L7: 0.002
A8: 총 급여 | B8: =B4*B3 -> 35964000 | C8: 월급여 × 참여개월수 | E8: 4대보험개인부담금 | F8: =F4:F4*개인요율 -> 291229.9685 | I8: 계 | J8: =SUM(J3:J7) -> 0.09717383 | K8: =SUM(K3:K7) -> 0.11203383 | L8: 0.20920766
A9: 월 퇴직금 | B9: =IF(B6="O",B4/12,0) -> 0 | C9: 월급여 ÷ 12 | E9: 식대 | F9: =B5 -> 200000 | I9: * 건강3.595%+요양(건강*13.14%)
A10: 총 퇴직금 | B10: =B9*B3 -> 0 | C10: 월 퇴직금 × 참여개월수 | E10: 실수령액 | F10: =F4-F5-F8 -> 2644230.031
A11: 월 법인부담금 | B11: =(B4-B5)*법인요율 -> 313358.6225 | C11: 월급여 × 법인부담금 요율
A12: 총 법인부담금 | B12: =B11*B3 -> 3760303.47 | C12: 월 법인부담금 × 12
A13: 총 소요비용 계 | B13: =B8+B10+B12 -> 39724303.47 | C13: 연급여+퇴직금+연법인부담금
A14: 예상잔액 | B14: =B2-B13 -> 275696.5299 | D14: =IF(B4<VLOOKUP(B7,'2026 최저시급'!G5:L10,6,FALSE),"최저임금 미달입니다.(급여조정필요)","") -> 
A15: ※ 노란색 셀값만 변경
A17: ■ 월 급여 계산기(월 급여액을 알지만 전체 소요 예상비용을 모를때)
A18: 월 급여 | B18: 1360000 | C18: 계약서 기재 금액(식대포함) | E18: <급여명세서(예상)>
A19: 참여개월수 | B19: 12 | E19: 급여항목 | F19: 금액
A20: (식대) | B20: 200000 | E20: 월급여 | F20: =B18 -> 1360000
A21: 퇴직금 유무 | B21: O | E21: 세액 | F21: =F22+F23 -> 2680
A22: 일 최대 근로시간(H) | B22: 5 | C22: 2026 최저시급 기준적용(일3시간이상(주15시간이상)만가능) | E22: 소득세 | F22: =IFERROR(VLOOKUP((F20-F25)/1000,'2024년 간이세액표'!A:M,3,1),0) -> 2440
A23: 총 급여 | B23: =B18*B19 -> 16320000 | C23: 월급여 × 참여개월수 | E23: 지방소득세 | F23: =IFERROR(ROUNDDOWN(F22*10%,-1),0) -> 240
A24: 월 퇴직금 | B24: =IF(B21="O",B18/12,0) -> 113333.3333 | C24: 월급여 ÷ 12 | E24: 4대보험개인부담금 | F24: =F20*개인요율 -> 132156.4088
A25: 총 퇴직금 | B25: =B24*B19 -> 1360000 | C25: 월 퇴직금 × 참여개월수 | E25: 식대 | F25: =B20 -> 200000
A26: 월 법인부담금 | B26: =(B18-B20)*법인요율 -> 129959.2428 | C26: 월급여 × 법인부담금 요율 | E26: 실수령액 | F26: =F20-F21-F24 -> 1225163.591
A27: 총 법인부담금 | B27: =B26*B19 -> 1559510.914 | C27: 월 법인부담금 × 12
A28: 총 소요비용 계 | B28: =B23+B25+B27 -> 19239510.91 | C28: 연급여+퇴직금+연법인부담금 | D28: =IF(B18<VLOOKUP(B22,'2026 최저시급'!G5:L10,6,FALSE),"최저임금 미달입니다.(급여조정필요)","") -> 
A29: ※ 노란색 셀값만 변경

Sheet 급여계산기(총장발령)
A1: ■ 월 급여 계산기(과제확보 예산을 알지만 월 급여액을 얼마로 해야할지 모를때)
A2: 과제에서 확보된 재원 | B2: 30000000 | C2: 인건비 세목예산 | E2: <급여명세서(예상)> | I2: 4대보험 요율 | J2: 개인부담금 | K2: 법인부담금 | L2: 합계
A3: 참여개월수 | B3: 12 | E3: 급여항목 | F3: 금액 | I3: 고용 | J3: 0.009 | K3: 0.0175 | L3: =SUM(J3:K3) -> 0.0265
A4: 월급여 | B4: =IF(B6="O",ROUNDDOWN((12*B2)/(12*B3*법인요율+13*B3),-3),ROUNDDOWN(B2/(B3*법인요율+B3),-3)) -> 2085000 | C4: 계약서 기재 금액(식대포함) | E4: 월급여 | F4: =B4 -> 2085000 | I4: 산재 | J4: 0 | K4: 0.00764 | L4: 0.00764
A5: (식대) | B5: X | C5: 연구교원식대없음 | E5: 세액 | F5: =F6+F7 -> 24290 | I5: 국민 | J5: 0.0475 | K5: 0.0475 | L5: 0.095 | M5: 2026인상
A6: 퇴직금 유무 | B6: O | E6: 소득세 | F6: =IFERROR(VLOOKUP(F4/1000,'2024년 간이세액표'!A1:M659,3,1),0) -> 22090 | I6: 건강 | J6: 0.04067383 | K6: 0.04067383 | L6: 0.08134766 | M6: 2026인상
A7: 일 최대 근로시간(H) | B7: 8 | C7: 2026 최저시급 기준적용 | E7: 지방소득세 | F7: =IFERROR(ROUNDDOWN(F6*10%,-1),0) -> 2200 | I7: 예비율 | K7: 0.00186 | L7: 0.00186
A8: 총 급여 | B8: =B4*B3 -> 25020000 | C8: 월급여 × 참여개월수 | E8: 4대보험개인부담금 | F8: =F4*개인요율 -> 202607.4355 | I8: 계 | J8: =SUM(J3:J7) -> 0.09717383 | K8: =SUM(K3:K7) -> 0.11517383 | L8: 0.21234766
A9: 월 퇴직금 | B9: =IF(B6="O",B4/12,0) -> 173750 | C9: 월급여 ÷ 12 | E9: 식대 | I9: * 건강3.595%+요양(건강*13.14%)
A10: 총 퇴직금 | B10: =B9*B3 -> 2085000 | C10: 월 퇴직금 × 참여개월수 | E10: 실수령액 | F10: =F4-F5-F8+F9 -> 1858102.564
A11: 월 법인부담금 | B11: =B4*법인요율 -> 240137.4356 | C11: 월급여 × 법인부담금 요율
A12: 총 법인부담금 | B12: =B11*B3 -> 2881649.227 | C12: 월 법인부담금 × 12
A13: 총 소요비용 계 | B13: =B8+B10+B12 -> 29986649.23 | C13: 연급여+퇴직금+연법인부담금
A14: 예상잔액 | B14: =B2-B13 -> 13350.7734
A15: ※ 노란색 셀값만 변경
A17: ■ 월 급여 계산기(월 급여액을 알지만 전체 소요 예상비용을 모를때)
A18: 월 급여 | B18: 3000000 | C18: 계약서 기재 금액(식대포함) | E18: <급여명세서(예상)>
A19: 참여개월수 | B19: 12 | E19: 급여항목 | F19: 금액
A20: (식대) | B20: X | C20: 연구교원식대없음 | E20: 월급여 | F20: =B18 -> 3000000
A21: 퇴직금 유무 | B21: O | E21: 세액 | F21: =F22+F23 -> 81780
A22: 총 급여 | B22: =B18*B19 -> 36000000 | C22: 월급여 × 참여개월수 | E22: 소득세 | F22: =IFERROR(VLOOKUP(F20/1000,'2024년 간이세액표'!A17:M675,3,1),0) -> 74350
A23: 월 퇴직금 | B23: =IF(B21="O",B18/12,0) -> 250000 | C23: 월급여 ÷ 12 | E23: 지방소득세 | F23: =IFERROR(ROUNDDOWN(F22*10%,-1),0) -> 7430
A24: 총 퇴직금 | B24: =B23*B19 -> 3000000 | C24: 월 퇴직금 × 참여개월수 | E24: 4대보험개인부담금 | F24: =F20*개인요율 -> 291521.49
A25: 월 법인부담금 | B25: =B18*법인요율 -> 345521.49 | C25: 월급여 × 법인부담금 요율 | E25: 식대
A26: 총 법인부담금 | B26: =B25*B19 -> 4146257.88 | C26: 월 법인부담금 × 12 | E26: 실수령액 | F26: =F20-F21-F24+F25 -> 2626698.51
A27: 총 소요비용 계 | B27: =B22+B24+B26 -> 43146257.88 | C27: 연급여+퇴직금+연법인부담금
A28: ※ 노란색 셀값만 변경

Sheet 2024년 간이세액표
A1: 2024년 근로소득에 대한 간이세액표(제189조 관련)
M2: (단위 : 원)
C4: 1 | D4: 2 | E4: 3 | F4: 4 | G4: 5 | H4: 6 | I4: 7 | J4: 8 | K4: 9 | L4: 10 | M4: 11
A6: 770 | B6: 775 | C6: 0 | D6: 0 | E6: 0 | F6: 0 | G6: 0 | H6: 0 | I6: 0 | J6: 0 | K6: 0 | L6: 0 | M6: 0
A7: 775 | B7: 780 | C7: 0 | D7: 0 | E7: 0 | F7: 0 | G7: 0 | H7: 0 | I7: 0 | J7: 0 | K7: 0 | L7: 0 | M7: 0
A8: 780 | B8: 785 | C8: 0 | D8: 0 | E8: 0 | F8: 0 | G8: 0 | H8: 0 | I8: 0 | J8: 0 | K8: 0 | L8: 0 | M8: 0
A9: 785 | B9: 790 | C9: 0 | D9: 0 | E9: 0 | F9: 0 | G9: 0 | H9: 0 | I9: 0 | J9: 0 | K9: 0 | L9: 0 | M9: 0
A10: 790 | B10: 795 | C10: 0 | D10: 0 | E10: 0 | F10: 0 | G10: 0 | H10: 0 | I10: 0 | J10: 0 | K10: 0 | L10: 0 | M10: 0
A11: 795 | B11: 800 | C11: 0 | D11: 0 | E11: 0 | F11: 0 | G11: 0 | H11: 0 | I11: 0 | J11: 0 | K11: 0 | L11: 0 | M11: 0
A12: 800 | B12: 805 | C12: 0 | D12: 0 | E12: 0 | F12: 0 | G12: 0 | H12: 0 | I12: 0 | J12: 0 | K12: 0 | L12: 0 | M12: 0
A13: 805 | B13: 810 | C13: 0 | D13: 0 | E13: 0 | F13: 0 | G13: 0 | H13: 0 | I13: 0 | J13: 0 | K13: 0 | L13: 0 | M13: 0
A14: 810 | B14: 815 | C14: 0 | D14: 0 | E14: 0 | F14: 0 | G14: 0 | H14: 0 | I14: 0 | J14: 0 | K14: 0 | L14: 0 | M14: 0
A15: 815 | B15: 820 | C15: 0 | D15: 0 | E15: 0 | F15: 0 | G15: 0 | H15: 0 | I15: 0 | J15: 0 | K15: 0 | L15: 0 | M15: 0
A16: 820 | B16: 825 | C16: 0 | D16: 0 | E16: 0 | F16: 0 | G16: 0 | H16: 0 | I16: 0 | J16: 0 | K16: 0 | L16: 0 | M16: 0
A17: 825 | B17: 830 | C17: 0 | D17: 0 | E17: 0 | F17: 0 | G17: 0 | H17: 0 | I17: 0 | J17: 0 | K17: 0 | L17: 0 | M17: 0
A18: 830 | B18: 835 | C18: 0 | D18: 0 | E18: 0 | F18: 0 | G18: 0 | H18: 0 | I18: 0 | J18: 0 | K18: 0 | L18: 0 | M18: 0
A19: 835 | B19: 840 | C19: 0 | D19: 0 | E19: 0 | F19: 0 | G19: 0 | H19: 0 | I19: 0 | J19: 0 | K19: 0 | L19: 0 | M19: 0
A20: 840 | B20: 845 | C20: 0 | D20: 0 | E20: 0 | F20: 0 | G20: 0 | H20: 0 | I20: 0 | J20: 0 | K20: 0 | L20: 0 | M20: 0
A21: 845 | B21: 850 | C21: 0 | D21: 0 | E21: 0 | F21: 0 | G21: 0 | H21: 0 | I21: 0 | J21: 0 | K21: 0 | L21: 0 | M21: 0
A22: 850 | B22: 855 | C22: 0 | D22: 0 | E22: 0 | F22: 0 | G22: 0 | H22: 0 | I22: 0 | J22: 0 | K22: 0 | L22: 0 | M22: 0
A23: 855 | B23: 860 | C23: 0 | D23: 0 | E23: 0 | F23: 0 | G23: 0 | H23: 0 | I23: 0 | J23: 0 | K23: 0 | L23: 0 | M23: 0
A24: 860 | B24: 865 | C24: 0 | D24: 0 | E24: 0 | F24: 0 | G24: 0 | H24: 0 | I24: 0 | J24: 0 | K24: 0 | L24: 0 | M24: 0
A25: 865 | B25: 870 | C25: 0 | D25: 0 | E25: 0 | F25: 0 | G25: 0 | H25: 0 | I25: 0 | J25: 0 | K25: 0 | L25: 0 | M25: 0
A26: 870 | B26: 875 | C26: 0 | D26: 0 | E26: 0 | F26: 0 | G26: 0 | H26: 0 | I26: 0 | J26: 0 | K26: 0 | L26: 0 | M26: 0
A27: 875 | B27: 880 | C27: 0 | D27: 0 | E27: 0 | F27: 0 | G27: 0 | H27: 0 | I27: 0 | J27: 0 | K27: 0 | L27: 0 | M27: 0
A28: 880 | B28: 885 | C28: 0 | D28: 0 | E28: 0 | F28: 0 | G28: 0 | H28: 0 | I28: 0 | J28: 0 | K28: 0 | L28: 0 | M28: 0
A29: 885 | B29: 890 | C29: 0 | D29: 0 | E29: 0 | F29: 0 | G29: 0 | H29: 0 | I29: 0 | J29: 0 | K29: 0 | L29: 0 | M29: 0
A30: 890 | B30: 895 | C30: 0 | D30: 0 | E30: 0 | F30: 0 | G30: 0 | H30: 0 | I30: 0 | J30: 0 | K30: 0 | L30: 0 | M30: 0
A31: 895 | B31: 900 | C31: 0 | D31: 0 | E31: 0 | F31: 0 | G31: 0 | H31: 0 | I31: 0 | J31: 0 | K31: 0 | L31: 0 | M31: 0
A32: 900 | B32: 905 | C32: 0 | D32: 0 | E32: 0 | F32: 0 | G32: 0 | H32: 0 | I32: 0 | J32: 0 | K32: 0 | L32: 0 | M32: 0
A33: 905 | B33: 910 | C33: 0 | D33: 0 | E33: 0 | F33: 0 | G33: 0 | H33: 0 | I33: 0 | J33: 0 | K33: 0 | L33: 0 | M33: 0
A34: 910 | B34: 915 | C34: 0 | D34: 0 | E34: 0 | F34: 0 | G34: 0 | H34: 0 | I34: 0 | J34: 0 | K34: 0 | L34: 0 | M34: 0
A35: 915 | B35: 920 | C35: 0 | D35: 0 | E35: 0 | F35: 0 | G35: 0 | H35: 0 | I35: 0 | J35: 0 | K35: 0 | L35: 0 | M35: 0
A36: 920 | B36: 925 | C36: 0 | D36: 0 | E36: 0 | F36: 0 | G36: 0 | H36: 0 | I36: 0 | J36: 0 | K36: 0 | L36: 0 | M36: 0
A37: 925 | B37: 930 | C37: 0 | D37: 0 | E37: 0 | F37: 0 | G37: 0 | H37: 0 | I37: 0 | J37: 0 | K37: 0 | L37: 0 | M37: 0
A38: 930 | B38: 935 | C38: 0 | D38: 0 | E38: 0 | F38: 0 | G38: 0 | H38: 0 | I38: 0 | J38: 0 | K38: 0 | L38: 0 | M38: 0
A39: 935 | B39: 940 | C39: 0 | D39: 0 | E39: 0 | F39: 0 | G39: 0 | H39: 0 | I39: 0 | J39: 0 | K39: 0 | L39: 0 | M39: 0
A40: 940 | B40: 945 | C40: 0 | D40: 0 | E40: 0 | F40: 0 | G40: 0 | H40: 0 | I40: 0 | J40: 0 | K40: 0 | L40: 0 | M40: 0
A41: 945 | B41: 950 | C41: 0 | D41: 0 | E41: 0 | F41: 0 | G41: 0 | H41: 0 | I41: 0 | J41: 0 | K41: 0 | L41: 0 | M41: 0
A42: 950 | B42: 955 | C42: 0 | D42: 0 | E42: 0 | F42: 0 | G42: 0 | H42: 0 | I42: 0 | J42: 0 | K42: 0 | L42: 0 | M42: 0
A43: 955 | B43: 960 | C43: 0 | D43: 0 | E43: 0 | F43: 0 | G43: 0 | H43: 0 | I43: 0 | J43: 0 | K43: 0 | L43: 0 | M43: 0
A44: 960 | B44: 965 | C44: 0 | D44: 0 | E44: 0 | F44: 0 | G44: 0 | H44: 0 | I44: 0 | J44: 0 | K44: 0 | L44: 0 | M44: 0
A45: 965 | B45: 970 | C45: 0 | D45: 0 | E45: 0 | F45: 0 | G45: 0 | H45: 0 | I45: 0 | J45: 0 | K45: 0 | L45: 0 | M45: 0
A46: 970 | B46: 975 | C46: 0 | D46: 0 | E46: 0 | F46: 0 | G46: 0 | H46: 0 | I46: 0 | J46: 0 | K46: 0 | L46: 0 | M46: 0
A47: 975 | B47: 980 | C47: 0 | D47: 0 | E47: 0 | F47: 0 | G47: 0 | H47: 0 | I47: 0 | J47: 0 | K47: 0 | L47: 0 | M47: 0
A48: 980 | B48: 985 | C48: 0 | D48: 0 | E48: 0 | F48: 0 | G48: 0 | H48: 0 | I48: 0 | J48: 0 | K48: 0 | L48: 0 | M48: 0
A49: 985 | B49: 990 | C49: 0 | D49: 0 | E49: 0 | F49: 0 | G49: 0 | H49: 0 | I49: 0 | J49: 0 | K49: 0 | L49: 0 | M49: 0
A50: 990 | B50: 995 | C50: 0 | D50: 0 | E50: 0 | F50: 0 | G50: 0 | H50: 0 | I50: 0 | J50: 0 | K50: 0 | L50: 0 | M50: 0
A51: 995 | B51: 1000 | C51: 0 | D51: 0 | E51: 0 | F51: 0 | G51: 0 | H51: 0 | I51: 0 | J51: 0 | K51: 0 | L51: 0 | M51: 0
A52: 1000 | B52: 1005 | C52: 0 | D52: 0 | E52: 0 | F52: 0 | G52: 0 | H52: 0 | I52: 0 | J52: 0 | K52: 0 | L52: 0 | M52: 0
A53: 1005 | B53: 1010 | C53: 0 | D53: 0 | E53: 0 | F53: 0 | G53: 0 | H53: 0 | I53: 0 | J53: 0 | K53: 0 | L53: 0 | M53: 0
A54: 1010 | B54: 1015 | C54: 0 | D54: 0 | E54: 0 | F54: 0 | G54: 0 | H54: 0 | I54: 0 | J54: 0 | K54: 0 | L54: 0 | M54: 0
A55: 1015 | B55: 1020 | C55: 0 | D55: 0 | E55: 0 | F55: 0 | G55: 0 | H55: 0 | I55: 0 | J55: 0 | K55: 0 | L55: 0 | M55: 0
A56: 1020 | B56: 1025 | C56: 0 | D56: 0 | E56: 0 | F56: 0 | G56: 0 | H56: 0 | I56: 0 | J56: 0 | K56: 0 | L56: 0 | M56: 0
A57: 1025 | B57: 1030 | C57: 0 | D57: 0 | E57: 0 | F57: 0 | G57: 0 | H57: 0 | I57: 0 | J57: 0 | K57: 0 | L57: 0 | M57: 0
A58: 1030 | B58: 1035 | C58: 0 | D58: 0 | E58: 0 | F58: 0 | G58: 0 | H58: 0 | I58: 0 | J58: 0 | K58: 0 | L58: 0 | M58: 0
A59: 1035 | B59: 1040 | C59: 0 | D59: 0 | E59: 0 | F59: 0 | G59: 0 | H59: 0 | I59: 0 | J59: 0 | K59: 0 | L59: 0 | M59: 0
A60: 1040 | B60: 1045 | C60: 0 | D60: 0 | E60: 0 | F60: 0 | G60: 0 | H60: 0 | I60: 0 | J60: 0 | K60: 0 | L60: 0 | M60: 0
A61: 1045 | B61: 1050 | C61: 0 | D61: 0 | E61: 0 | F61: 0 | G61: 0 | H61: 0 | I61: 0 | J61: 0 | K61: 0 | L61: 0 | M61: 0
A62: 1050 | B62: 1055 | C62: 0 | D62: 0 | E62: 0 | F62: 0 | G62: 0 | H62: 0 | I62: 0 | J62: 0 | K62: 0 | L62: 0 | M62: 0
A63: 1055 | B63: 1060 | C63: 0 | D63: 0 | E63: 0 | F63: 0 | G63: 0 | H63: 0 | I63: 0 | J63: 0 | K63: 0 | L63: 0 | M63: 0
A64: 1060 | B64: 1065 | C64: 1040 | D64: 0 | E64: 0 | F64: 0 | G64: 0 | H64: 0 | I64: 0 | J64: 0 | K64: 0 | L64: 0 | M64: 0
A65: 1065 | B65: 1070 | C65: 1110 | D65: 0 | E65: 0 | F65: 0 | G65: 0 | H65: 0 | I65: 0 | J65: 0 | K65: 0 | L65: 0 | M65: 0
A66: 1070 | B66: 1075 | C66: 1180 | D66: 0 | E66: 0 | F66: 0 | G66: 0 | H66: 0 | I66: 0 | J66: 0 | K66: 0 | L66: 0 | M66: 0
A67: 1075 | B67: 1080 | C67: 1250 | D67: 0 | E67: 0 | F67: 0 | G67: 0 | H67: 0 | I67: 0 | J67: 0 | K67: 0 | L67: 0 | M67: 0
A68: 1080 | B68: 1085 | C68: 1320 | D68: 0 | E68: 0 | F68: 0 | G68: 0 | H68: 0 | I68: 0 | J68: 0 | K68: 0 | L68: 0 | M68: 0
A69: 1085 | B69: 1090 | C69: 1390 | D69: 0 | E69: 0 | F69: 0 | G69: 0 | H69: 0 | I69: 0 | J69: 0 | K69: 0 | L69: 0 | M69: 0
A70: 1090 | B70: 1095 | C70: 1460 | D70: 0 | E70: 0 | F70: 0 | G70: 0 | H70: 0 | I70: 0 | J70: 0 | K70: 0 | L70: 0 | M70: 0
A71: 1095 | B71: 1100 | C71: 1530 | D71: 0 | E71: 0 | F71: 0 | G71: 0 | H71: 0 | I71: 0 | J71: 0 | K71: 0 | L71: 0 | M71: 0
A72: 1100 | B72: 1105 | C72: 1600 | D72: 0 | E72: 0 | F72: 0 | G72: 0 | H72: 0 | I72: 0 | J72: 0 | K72: 0 | L72: 0 | M72: 0
A73: 1105 | B73: 1110 | C73: 1670 | D73: 0 | E73: 0 | F73: 0 | G73: 0 | H73: 0 | I73: 0 | J73: 0 | K73: 0 | L73: 0 | M73: 0
A74: 1110 | B74: 1115 | C74: 1740 | D74: 0 | E74: 0 | F74: 0 | G74: 0 | H74: 0 | I74: 0 | J74: 0 | K74: 0 | L74: 0 | M74: 0
A75: 1115 | B75: 1120 | C75: 1810 | D75: 0 | E75: 0 | F75: 0 | G75: 0 | H75: 0 | I75: 0 | J75: 0 | K75: 0 | L75: 0 | M75: 0
A76: 1120 | B76: 1125 | C76: 1880 | D76: 0 | E76: 0 | F76: 0 | G76: 0 | H76: 0 | I76: 0 | J76: 0 | K76: 0 | L76: 0 | M76: 0
A77: 1125 | B77: 1130 | C77: 1950 | D77: 0 | E77: 0 | F77: 0 | G77: 0 | H77: 0 | I77: 0 | J77: 0 | K77: 0 | L77: 0 | M77: 0
A78: 1130 | B78: 1135 | C78: 2020 | D78: 0 | E78: 0 | F78: 0 | G78: 0 | H78: 0 | I78: 0 | J78: 0 | K78: 0 | L78: 0 | M78: 0
A79: 1135 | B79: 1140 | C79: 2090 | D79: 0 | E79: 0 | F79: 0 | G79: 0 | H79: 0 | I79: 0 | J79: 0 | K79: 0 | L79: 0 | M79: 0
A80: 1140 | B80: 1145 | C80: 2160 | D80: 0 | E80: 0 | F80: 0 | G80: 0 | H80: 0 | I80: 0 | J80: 0 | K80: 0 | L80: 0 | M80: 0
A81: 1145 | B81: 1150 | C81: 2230 | D81: 0 | E81: 0 | F81: 0 | G81: 0 | H81: 0 | I81: 0 | J81: 0 | K81: 0 | L81: 0 | M81: 0
A82: 1150 | B82: 1155 | C82: 2300 | D82: 0 | E82: 0 | F82: 0 | G82: 0 | H82: 0 | I82: 0 | J82: 0 | K82: 0 | L82: 0 | M82: 0
A83: 1155 | B83: 1160 | C83: 2370 | D83: 0 | E83: 0 | F83: 0 | G83: 0 | H83: 0 | I83: 0 | J83: 0 | K83: 0 | L83: 0 | M83: 0
A84: 1160 | B84: 1165 | C84: 2440 | D84: 0 | E84: 0 | F84: 0 | G84: 0 | H84: 0 | I84: 0 | J84: 0 | K84: 0 | L84: 0 | M84: 0
A85: 1165 | B85: 1170 | C85: 2500 | D85: 0 | E85: 0 | F85: 0 | G85: 0 | H85: 0 | I85: 0 | J85: 0 | K85: 0 | L85: 0 | M85: 0
A86: 1170 | B86: 1175 | C86: 2570 | D86: 0 | E86: 0 | F86: 0 | G86: 0 | H86: 0 | I86: 0 | J86: 0 | K86: 0 | L86: 0 | M86: 0
A87: 1175 | B87: 1180 | C87: 2640 | D87: 0 | E87: 0 | F87: 0 | G87: 0 | H87: 0 | I87: 0 | J87: 0 | K87: 0 | L87: 0 | M87: 0
A88: 1180 | B88: 1185 | C88: 2710 | D88: 0 | E88: 0 | F88: 0 | G88: 0 | H88: 0 | I88: 0 | J88: 0 | K88: 0 | L88: 0 | M88: 0
A89: 1185 | B89: 1190 | C89: 2780 | D89: 0 | E89: 0 | F89: 0 | G89: 0 | H89: 0 | I89: 0 | J89: 0 | K89: 0 | L89: 0 | M89: 0
A90: 1190 | B90: 1195 | C90: 2850 | D90: 0 | E90: 0 | F90: 0 | G90: 0 | H90: 0 | I90: 0 | J90: 0 | K90: 0 | L90: 0 | M90: 0
A91: 1195 | B91: 1200 | C91: 2920 | D91: 0 | E91: 0 | F91: 0 | G91: 0 | H91: 0 | I91: 0 | J91: 0 | K91: 0 | L91: 0 | M91: 0
A92: 1200 | B92: 1205 | C92: 2990 | D92: 0 | E92: 0 | F92: 0 | G92: 0 | H92: 0 | I92: 0 | J92: 0 | K92: 0 | L92: 0 | M92: 0
A93: 1205 | B93: 1210 | C93: 3060 | D93: 0 | E93: 0 | F93: 0 | G93: 0 | H93: 0 | I93: 0 | J93: 0 | K93: 0 | L93: 0 | M93: 0
A94: 1210 | B94: 1215 | C94: 3130 | D94: 0 | E94: 0 | F94: 0 | G94: 0 | H94: 0 | I94: 0 | J94: 0 | K94: 0 | L94: 0 | M94: 0
A95: 1215 | B95: 1220 | C95: 3200 | D95: 0 | E95: 0 | F95: 0 | G95: 0 | H95: 0 | I95: 0 | J95: 0 | K95: 0 | L95: 0 | M95: 0
A96: 1220 | B96: 1225 | C96: 3270 | D96: 0 | E96: 0 | F96: 0 | G96: 0 | H96: 0 | I96: 0 | J96: 0 | K96: 0 | L96: 0 | M96: 0
A97: 1225 | B97: 1230 | C97: 3340 | D97: 0 | E97: 0 | F97: 0 | G97: 0 | H97: 0 | I97: 0 | J97: 0 | K97: 0 | L97: 0 | M97: 0
A98: 1230 | B98: 1235 | C98: 3410 | D98: 0 | E98: 0 | F98: 0 | G98: 0 | H98: 0 | I98: 0 | J98: 0 | K98: 0 | L98: 0 | M98: 0
A99: 1235 | B99: 1240 | C99: 3480 | D99: 0 | E99: 0 | F99: 0 | G99: 0 | H99: 0 | I99: 0 | J99: 0 | K99: 0 | L99: 0 | M99: 0
A100: 1240 | B100: 1245 | C100: 3550 | D100: 0 | E100: 0 | F100: 0 | G100: 0 | H100: 0 | I100: 0 | J100: 0 | K100: 0 | L100: 0 | M100: 0
A101: 1245 | B101: 1250 | C101: 3620 | D101: 0 | E101: 0 | F101: 0 | G101: 0 | H101: 0 | I101: 0 | J101: 0 | K101: 0 | L101: 0 | M101: 0
A102: 1250 | B102: 1255 | C102: 3700 | D102: 0 | E102: 0 | F102: 0 | G102: 0 | H102: 0 | I102: 0 | J102: 0 | K102: 0 | L102: 0 | M102: 0
A103: 1255 | B103: 1260 | C103: 3810 | D103: 0 | E103: 0 | F103: 0 | G103: 0 | H103: 0 | I103: 0 | J103: 0 | K103: 0 | L103: 0 | M103: 0
A104: 1260 | B104: 1265 | C104: 3910 | D104: 0 | E104: 0 | F104: 0 | G104: 0 | H104: 0 | I104: 0 | J104: 0 | K104: 0 | L104: 0 | M104: 0
A105: 1265 | B105: 1270 | C105: 4010 | D105: 0 | E105: 0 | F105: 0 | G105: 0 | H105: 0 | I105: 0 | J105: 0 | K105: 0 | L105: 0 | M105: 0
A106: 1270 | B106: 1275 | C106: 4120 | D106: 0 | E106: 0 | F106: 0 | G106: 0 | H106: 0 | I106: 0 | J106: 0 | K106: 0 | L106: 0 | M106: 0
A107: 1275 | B107: 1280 | C107: 4220 | D107: 0 | E107: 0 | F107: 0 | G107: 0 | H107: 0 | I107: 0 | J107: 0 | K107: 0 | L107: 0 | M107: 0
A108: 1280 | B108: 1285 | C108: 4320 | D108: 0 | E108: 0 | F108: 0 | G108: 0 | H108: 0 | I108: 0 | J108: 0 | K108: 0 | L108: 0 | M108: 0
A109: 1285 | B109: 1290 | C109: 4430 | D109: 0 | E109: 0 | F109: 0 | G109: 0 | H109: 0 | I109: 0 | J109: 0 | K109: 0 | L109: 0 | M109: 0
A110: 1290 | B110: 1295 | C110: 4530 | D110: 0 | E110: 0 | F110: 0 | G110: 0 | H110: 0 | I110: 0 | J110: 0 | K110: 0 | L110: 0 | M110: 0
A111: 1295 | B111: 1300 | C111: 4630 | D111: 0 | E111: 0 | F111: 0 | G111: 0 | H111: 0 | I111: 0 | J111: 0 | K111: 0 | L111: 0 | M111: 0
A112: 1300 | B112: 1305 | C112: 4740 | D112: 0 | E112: 0 | F112: 0 | G112: 0 | H112: 0 | I112: 0 | J112: 0 | K112: 0 | L112: 0 | M112: 0
A113: 1305 | B113: 1310 | C113: 4840 | D113: 0 | E113: 0 | F113: 0 | G113: 0 | H113: 0 | I113: 0 | J113: 0 | K113: 0 | L113: 0 | M113: 0
A114: 1310 | B114: 1315 | C114: 4940 | D114: 0 | E114: 0 | F114: 0 | G114: 0 | H114: 0 | I114: 0 | J114: 0 | K114: 0 | L114: 0 | M114: 0
A115: 1315 | B115: 1320 | C115: 5050 | D115: 0 | E115: 0 | F115: 0 | G115: 0 | H115: 0 | I115: 0 | J115: 0 | K115: 0 | L115: 0 | M115: 0
A116: 1320 | B116: 1325 | C116: 5150 | D116: 0 | E116: 0 | F116: 0 | G116: 0 | H116: 0 | I116: 0 | J116: 0 | K116: 0 | L116: 0 | M116: 0
A117: 1325 | B117: 1330 | C117: 5250 | D117: 0 | E117: 0 | F117: 0 | G117: 0 | H117: 0 | I117: 0 | J117: 0 | K117: 0 | L117: 0 | M117: 0
A118: 1330 | B118: 1335 | C118: 5360 | D118: 0 | E118: 0 | F118: 0 | G118: 0 | H118: 0 | I118: 0 | J118: 0 | K118: 0 | L118: 0 | M118: 0
A119: 1335 | B119: 1340 | C119: 5460 | D119: 0 | E119: 0 | F119: 0 | G119: 0 | H119: 0 | I119: 0 | J119: 0 | K119: 0 | L119: 0 | M119: 0
A120: 1340 | B120: 1345 | C120: 5560 | D120: 1060 | E120: 0 | F120: 0 | G120: 0 | H120: 0 | I120: 0 | J120: 0 | K120: 0 | L120: 0 | M120: 0
A121: 1345 | B121: 1350 | C121: 5670 | D121: 1170 | E121: 0 | F121: 0 | G121: 0 | H121: 0 | I121: 0 | J121: 0 | K121: 0 | L121: 0 | M121: 0
A122: 1350 | B122: 1355 | C122: 5770 | D122: 1270 | E122: 0 | F122: 0 | G122: 0 | H122: 0 | I122: 0 | J122: 0 | K122: 0 | L122: 0 | M122: 0
A123: 1355 | B123: 1360 | C123: 5870 | D123: 1370 | E123: 0 | F123: 0 | G123: 0 | H123: 0 | I123: 0 | J123: 0 | K123: 0 | L123: 0 | M123: 0
A124: 1360 | B124: 1365 | C124: 5980 | D124: 1480 | E124: 0 | F124: 0 | G124: 0 | H124: 0 | I124: 0 | J124: 0 | K124: 0 | L124: 0 | M124: 0
A125: 1365 | B125: 1370 | C125: 6080 | D125: 1580 | E125: 0 | F125: 0 | G125: 0 | H125: 0 | I125: 0 | J125: 0 | K125: 0 | L125: 0 | M125: 0
A126: 1370 | B126: 1375 | C126: 6180 | D126: 1680 | E126: 0 | F126: 0 | G126: 0 | H126: 0 | I126: 0 | J126: 0 | K126: 0 | L126: 0 | M126: 0
A127: 1375 | B127: 1380 | C127: 6290 | D127: 1790 | E127: 0 | F127: 0 | G127: 0 | H127: 0 | I127: 0 | J127: 0 | K127: 0 | L127: 0 | M127: 0
A128: 1380 | B128: 1385 | C128: 6390 | D128: 1890 | E128: 0 | F128: 0 | G128: 0 | H128: 0 | I128: 0 | J128: 0 | K128: 0 | L128: 0 | M128: 0
A129: 1385 | B129: 1390 | C129: 6490 | D129: 1990 | E129: 0 | F129: 0 | G129: 0 | H129: 0 | I129: 0 | J129: 0 | K129: 0 | L129: 0 | M129: 0
A130: 1390 | B130: 1395 | C130: 6600 | D130: 2100 | E130: 0 | F130: 0 | G130: 0 | H130: 0 | I130: 0 | J130: 0 | K130: 0 | L130: 0 | M130: 0
A131: 1395 | B131: 1400 | C131: 6700 | D131: 2200 | E131: 0 | F131: 0 | G131: 0 | H131: 0 | I131: 0 | J131: 0 | K131: 0 | L131: 0 | M131: 0
A132: 1400 | B132: 1405 | C132: 6800 | D132: 2300 | E132: 0 | F132: 0 | G132: 0 | H132: 0 | I132: 0 | J132: 0 | K132: 0 | L132: 0 | M132: 0
A133: 1405 | B133: 1410 | C133: 6910 | D133: 2410 | E133: 0 | F133: 0 | G133: 0 | H133: 0 | I133: 0 | J133: 0 | K133: 0 | L133: 0 | M133: 0
A134: 1410 | B134: 1415 | C134: 7010 | D134: 2510 | E134: 0 | F134: 0 | G134: 0 | H134: 0 | I134: 0 | J134: 0 | K134: 0 | L134: 0 | M134: 0
A135: 1415 | B135: 1420 | C135: 7110 | D135: 2610 | E135: 0 | F135: 0 | G135: 0 | H135: 0 | I135: 0 | J135: 0 | K135: 0 | L135: 0 | M135: 0
A136: 1420 | B136: 1425 | C136: 7210 | D136: 2710 | E136: 0 | F136: 0 | G136: 0 | H136: 0 | I136: 0 | J136: 0 | K136: 0 | L136: 0 | M136: 0
A137: 1425 | B137: 1430 | C137: 7320 | D137: 2820 | E137: 0 | F137: 0 | G137: 0 | H137: 0 | I137: 0 | J137: 0 | K137: 0 | L137: 0 | M137: 0
A138: 1430 | B138: 1435 | C138: 7420 | D138: 2920 | E138: 0 | F138: 0 | G138: 0 | H138: 0 | I138: 0 | J138: 0 | K138: 0 | L138: 0 | M138: 0
A139: 1435 | B139: 1440 | C139: 7520 | D139: 3020 | E139: 0 | F139: 0 | G139: 0 | H139: 0 | I139: 0 | J139: 0 | K139: 0 | L139: 0 | M139: 0
A140: 1440 | B140: 1445 | C140: 7630 | D140: 3130 | E140: 0 | F140: 0 | G140: 0 | H140: 0 | I140: 0 | J140: 0 | K140: 0 | L140: 0 | M140: 0
A141: 1445 | B141: 1450 | C141: 7730 | D141: 3230 | E141: 0 | F141: 0 | G141: 0 | H141: 0 | I141: 0 | J141: 0 | K141: 0 | L141: 0 | M141: 0
A142: 1450 | B142: 1455 | C142: 7830 | D142: 3330 | E142: 0 | F142: 0 | G142: 0 | H142: 0 | I142: 0 | J142: 0 | K142: 0 | L142: 0 | M142: 0
A143: 1455 | B143: 1460 | C143: 7940 | D143: 3440 | E143: 0 | F143: 0 | G143: 0 | H143: 0 | I143: 0 | J143: 0 | K143: 0 | L143: 0 | M143: 0
A144: 1460 | B144: 1465 | C144: 8040 | D144: 3540 | E144: 0 | F144: 0 | G144: 0 | H144: 0 | I144: 0 | J144: 0 | K144: 0 | L144: 0 | M144: 0
A145: 1465 | B145: 1470 | C145: 8140 | D145: 3640 | E145: 0 | F145: 0 | G145: 0 | H145: 0 | I145: 0 | J145: 0 | K145: 0 | L145: 0 | M145: 0
A146: 1470 | B146: 1475 | C146: 8250 | D146: 3750 | E146: 0 | F146: 0 | G146: 0 | H146: 0 | I146: 0 | J146: 0 | K146: 0 | L146: 0 | M146: 0
A147: 1475 | B147: 1480 | C147: 8350 | D147: 3850 | E147: 0 | F147: 0 | G147: 0 | H147: 0 | I147: 0 | J147: 0 | K147: 0 | L147: 0 | M147: 0
A148: 1480 | B148: 1485 | C148: 8450 | D148: 3950 | E148: 0 | F148: 0 | G148: 0 | H148: 0 | I148: 0 | J148: 0 | K148: 0 | L148: 0 | M148: 0
A149: 1485 | B149: 1490 | C149: 8560 | D149: 4060 | E149: 0 | F149: 0 | G149: 0 | H149: 0 | I149: 0 | J149: 0 | K149: 0 | L149: 0 | M149: 0
A150: 1490 | B150: 1495 | C150: 8660 | D150: 4160 | E150: 0 | F150: 0 | G150: 0 | H150: 0 | I150: 0 | J150: 0 | K150: 0 | L150: 0 | M150: 0
A151: 1495 | B151: 1500 | C151: 8760 | D151: 4260 | E151: 0 | F151: 0 | G151: 0 | H151: 0 | I151: 0 | J151: 0 | K151: 0 | L151: 0 | M151: 0
A152: 1500 | B152: 1510 | C152: 8920 | D152: 4420 | E152: 0 | F152: 0 | G152: 0 | H152: 0 | I152: 0 | J152: 0 | K152: 0 | L152: 0 | M152: 0
A153: 1510 | B153: 1520 | C153: 9120 | D153: 4620 | E153: 0 | F153: 0 | G153: 0 | H153: 0 | I153: 0 | J153: 0 | K153: 0 | L153: 0 | M153: 0
A154: 1520 | B154: 1530 | C154: 9330 | D154: 4830 | E154: 0 | F154: 0 | G154: 0 | H154: 0 | I154: 0 | J154: 0 | K154: 0 | L154: 0 | M154: 0
A155: 1530 | B155: 1540 | C155: 9540 | D155: 5040 | E155: 0 | F155: 0 | G155: 0 | H155: 0 | I155: 0 | J155: 0 | K155: 0 | L155: 0 | M155: 0
A156: 1540 | B156: 1550 | C156: 9740 | D156: 5240 | E156: 0 | F156: 0 | G156: 0 | H156: 0 | I156: 0 | J156: 0 | K156: 0 | L156: 0 | M156: 0
A157: 1550 | B157: 1560 | C157: 9950 | D157: 5450 | E157: 0 | F157: 0 | G157: 0 | H157: 0 | I157: 0 | J157: 0 | K157: 0 | L157: 0 | M157: 0
A158: 1560 | B158: 1570 | C158: 10160 | D158: 5660 | E158: 0 | F158: 0 | G158: 0 | H158: 0 | I158: 0 | J158: 0 | K158: 0 | L158: 0 | M158: 0
A159: 1570 | B159: 1580 | C159: 10360 | D159: 5860 | E159: 0 | F159: 0 | G159: 0 | H159: 0 | I159: 0 | J159: 0 | K159: 0 | L159: 0 | M159: 0
A160: 1580 | B160: 1590 | C160: 10570 | D160: 6070 | E160: 0 | F160: 0 | G160: 0 | H160: 0 | I160: 0 | J160: 0 | K160: 0 | L160: 0 | M160: 0
A161: 1590 | B161: 1600 | C161: 10780 | D161: 6280 | E161: 0 | F161: 0 | G161: 0 | H161: 0 | I161: 0 | J161: 0 | K161: 0 | L161: 0 | M161: 0
A162: 1600 | B162: 1610 | C162: 10980 | D162: 6480 | E162: 0 | F162: 0 | G162: 0 | H162: 0 | I162: 0 | J162: 0 | K162: 0 | L162: 0 | M162: 0
A163: 1610 | B163: 1620 | C163: 11190 | D163: 6690 | E163: 0 | F163: 0 | G163: 0 | H163: 0 | I163: 0 | J163: 0 | K163: 0 | L163: 0 | M163: 0
A164: 1620 | B164: 1630 | C164: 11400 | D164: 6900 | E164: 0 | F164: 0 | G164: 0 | H164: 0 | I164: 0 | J164: 0 | K164: 0 | L164: 0 | M164: 0
A165: 1630 | B165: 1640 | C165: 11600 | D165: 7100 | E165: 0 | F165: 0 | G165: 0 | H165: 0 | I165: 0 | J165: 0 | K165: 0 | L165: 0 | M165: 0
A166: 1640 | B166: 1650 | C166: 11810 | D166: 7310 | E166: 0 | F166: 0 | G166: 0 | H166: 0 | I166: 0 | J166: 0 | K166: 0 | L166: 0 | M166: 0
A167: 1650 | B167: 1660 | C167: 12020 | D167: 7520 | E167: 0 | F167: 0 | G167: 0 | H167: 0 | I167: 0 | J167: 0 | K167: 0 | L167: 0 | M167: 0
A168: 1660 | B168: 1670 | C168: 12220 | D168: 7720 | E168: 0 | F168: 0 | G168: 0 | H168: 0 | I168: 0 | J168: 0 | K168: 0 | L168: 0 | M168: 0
A169: 1670 | B169: 1680 | C169: 12430 | D169: 7930 | E169: 0 | F169: 0 | G169: 0 | H169: 0 | I169: 0 | J169: 0 | K169: 0 | L169: 0 | M169: 0
A170: 1680 | B170: 1690 | C170: 12640 | D170: 8140 | E170: 0 | F170: 0 | G170: 0 | H170: 0 | I170: 0 | J170: 0 | K170: 0 | L170: 0 | M170: 0
A171: 1690 | B171: 1700 | C171: 12840 | D171: 8340 | E171: 0 | F171: 0 | G171: 0 | H171: 0 | I171: 0 | J171: 0 | K171: 0 | L171: 0 | M171: 0
A172: 1700 | B172: 1710 | C172: 13050 | D172: 8550 | E172: 0 | F172: 0 | G172: 0 | H172: 0 | I172: 0 | J172: 0 | K172: 0 | L172: 0 | M172: 0
A173: 1710 | B173: 1720 | C173: 13260 | D173: 8760 | E173: 0 | F173: 0 | G173: 0 | H173: 0 | I173: 0 | J173: 0 | K173: 0 | L173: 0 | M173: 0
A174: 1720 | B174: 1730 | C174: 13460 | D174: 8960 | E174: 1040 | F174: 0 | G174: 0 | H174: 0 | I174: 0 | J174: 0 | K174: 0 | L174: 0 | M174: 0
A175: 1730 | B175: 1740 | C175: 13670 | D175: 9170 | E175: 1240 | F175: 0 | G175: 0 | H175: 0 | I175: 0 | J175: 0 | K175: 0 | L175: 0 | M175: 0
A176: 1740 | B176: 1750 | C176: 13880 | D176: 9380 | E176: 1440 | F176: 0 | G176: 0 | H176: 0 | I176: 0 | J176: 0 | K176: 0 | L176: 0 | M176: 0
A177: 1750 | B177: 1760 | C177: 14080 | D177: 9580 | E177: 1640 | F177: 0 | G177: 0 | H177: 0 | I177: 0 | J177: 0 | K177: 0 | L177: 0 | M177: 0
A178: 1760 | B178: 1770 | C178: 14290 | D178: 9790 | E178: 1830 | F178: 0 | G178: 0 | H178: 0 | I178: 0 | J178: 0 | K178: 0 | L178: 0 | M178: 0
A179: 1770 | B179: 1780 | C179: 14500 | D179: 10000 | E179: 2030 | F179: 0 | G179: 0 | H179: 0 | I179: 0 | J179: 0 | K179: 0 | L179: 0 | M179: 0
A180: 1780 | B180: 1790 | C180: 14700 | D180: 10200 | E180: 2230 | F180: 0 | G180: 0 | H180: 0 | I180: 0 | J180: 0 | K180: 0 | L180: 0 | M180: 0
A181: 1790 | B181: 1800 | C181: 14910 | D181: 10410 | E181: 2430 | F181: 0 | G181: 0 | H181: 0 | I181: 0 | J181: 0 | K181: 0 | L181: 0 | M181: 0
A182: 1800 | B182: 1810 | C182: 15110 | D182: 10610 | E182: 2630 | F182: 0 | G182: 0 | H182: 0 | I182: 0 | J182: 0 | K182: 0 | L182: 0 | M182: 0
A183: 1810 | B183: 1820 | C183: 15320 | D183: 10820 | E183: 2830 | F183: 0 | G183: 0 | H183: 0 | I183: 0 | J183: 0 | K183: 0 | L183: 0 | M183: 0
A184: 1820 | B184: 1830 | C184: 15530 | D184: 11030 | E184: 3020 | F184: 0 | G184: 0 | H184: 0 | I184: 0 | J184: 0 | K184: 0 | L184: 0 | M184: 0
A185: 1830 | B185: 1840 | C185: 15730 | D185: 11230 | E185: 3220 | F185: 0 | G185: 0 | H185: 0 | I185: 0 | J185: 0 | K185: 0 | L185: 0 | M185: 0
A186: 1840 | B186: 1850 | C186: 15940 | D186: 11440 | E186: 3420 | F186: 0 | G186: 0 | H186: 0 | I186: 0 | J186: 0 | K186: 0 | L186: 0 | M186: 0
A187: 1850 | B187: 1860 | C187: 16150 | D187: 11650 | E187: 3620 | F187: 0 | G187: 0 | H187: 0 | I187: 0 | J187: 0 | K187: 0 | L187: 0 | M187: 0
A188: 1860 | B188: 1870 | C188: 16350 | D188: 11850 | E188: 3820 | F188: 0 | G188: 0 | H188: 0 | I188: 0 | J188: 0 | K188: 0 | L188: 0 | M188: 0
A189: 1870 | B189: 1880 | C189: 16560 | D189: 12060 | E189: 4020 | F189: 0 | G189: 0 | H189: 0 | I189: 0 | J189: 0 | K189: 0 | L189: 0 | M189: 0
A190: 1880 | B190: 1890 | C190: 16770 | D190: 12270 | E190: 4220 | F190: 0 | G190: 0 | H190: 0 | I190: 0 | J190: 0 | K190: 0 | L190: 0 | M190: 0
A191: 1890 | B191: 1900 | C191: 16970 | D191: 12470 | E191: 4410 | F191: 1040 | G191: 0 | H191: 0 | I191: 0 | J191: 0 | K191: 0 | L191: 0 | M191: 0
A192: 1900 | B192: 1910 | C192: 17180 | D192: 12680 | E192: 4610 | F192: 1240 | G192: 0 | H192: 0 | I192: 0 | J192: 0 | K192: 0 | L192: 0 | M192: 0
A193: 1910 | B193: 1920 | C193: 17390 | D193: 12890 | E193: 4810 | F193: 1440 | G193: 0 | H193: 0 | I193: 0 | J193: 0 | K193: 0 | L193: 0 | M193: 0
A194: 1920 | B194: 1930 | C194: 17590 | D194: 13090 | E194: 5010 | F194: 1630 | G194: 0 | H194: 0 | I194: 0 | J194: 0 | K194: 0 | L194: 0 | M194: 0
A195: 1930 | B195: 1940 | C195: 17800 | D195: 13300 | E195: 5210 | F195: 1830 | G195: 0 | H195: 0 | I195: 0 | J195: 0 | K195: 0 | L195: 0 | M195: 0
A196: 1940 | B196: 1950 | C196: 18010 | D196: 13510 | E196: 5410 | F196: 2030 | G196: 0 | H196: 0 | I196: 0 | J196: 0 | K196: 0 | L196: 0 | M196: 0
A197: 1950 | B197: 1960 | C197: 18210 | D197: 13710 | E197: 5600 | F197: 2230 | G197: 0 | H197: 0 | I197: 0 | J197: 0 | K197: 0 | L197: 0 | M197: 0
A198: 1960 | B198: 1970 | C198: 18420 | D198: 13920 | E198: 5800 | F198: 2430 | G198: 0 | H198: 0 | I198: 0 | J198: 0 | K198: 0 | L198: 0 | M198: 0
A199: 1970 | B199: 1980 | C199: 18630 | D199: 14130 | E199: 6000 | F199: 2630 | G199: 0 | H199: 0 | I199: 0 | J199: 0 | K199: 0 | L199: 0 | M199: 0
A200: 1980 | B200: 1990 | C200: 18880 | D200: 14330 | E200: 6200 | F200: 2820 | G200: 0 | H200: 0 | I200: 0 | J200: 0 | K200: 0 | L200: 0 | M200: 0
A201: 1990 | B201: 2000 | C201: 19200 | D201: 14540 | E201: 6400 | F201: 3020 | G201: 0 | H201: 0 | I201: 0 | J201: 0 | K201: 0 | L201: 0 | M201: 0
A202: 2000 | B202: 2010 | C202: 19520 | D202: 14750 | E202: 6600 | F202: 3220 | G202: 0 | H202: 0 | I202: 0 | J202: 0 | K202: 0 | L202: 0 | M202: 0
... 457 more rows

Sheet 2026 최저시급
A1: 최저시급(원) | D1: 10320 | E1: 2026년 기준
A3: ■ 2026
A4: 월 | B4: 화 | C4: 수 | D4: 목 | E4: 금 | F4: 월-금 시간 | G4: 주휴시간 | H4: 근로시간/주 | I4: 주/년 | J4: 근로시간/년 | K4: 근로시간/달 | L4: 월최저계약액(원) 2026
A5: 8 | B5: 8 | C5: 8 | D5: 8 | E5: 8 | F5: 40 | G5: 8 | H5: 48 | I5: 52.14285714 | J5: 2502.857143 | K5: 209 | L5: 2156880
A6: 7 | B6: 7 | C6: 7 | D6: 7 | E6: 7 | F6: 35 | G6: 7 | H6: 42 | I6: 52.14285714 | J6: 2190 | K6: 183 | L6: 1888560
A7: 6 | B7: 6 | C7: 6 | D7: 6 | E7: 6 | F7: 30 | G7: 6 | H7: 36 | I7: 52.14285714 | J7: 1877.142857 | K7: 157 | L7: 1620240
A8: 5 | B8: 5 | C8: 5 | D8: 5 | E8: 5 | F8: 25 | G8: 5 | H8: 30 | I8: 52.14285714 | J8: 1564.285714 | K8: 131 | L8: 1351920
A9: 4 | B9: 4 | C9: 4 | D9: 4 | E9: 4 | F9: 20 | G9: 4 | H9: 24 | I9: 52.14285714 | J9: 1251.428571 | K9: 105 | L9: 1083600
A10: 3 | B10: 3 | C10: 3 | D10: 3 | E10: 3 | F10: 15 | G10: 3 | H10: 18 | I10: 52.14285714 | J10: 938.5714286 | K10: 79 | L10: 815280 | M10: 주 15시간 이상 근무 시에만 근로계약 체결 가능
